bitfinex/quotes_BTCUSD_20250505
["timestamp","ask_amount","ask_price","bid_price","bid_amount"]
[1746487868138,0.00045247,95132.0,95131.0,0.04639049]
[1746487868338,0.00045247,95132.0,95131.0,0.04739049]
[1746487868697,0.00045247,95132.0,95131.0,0.04639049]
[1746487869014,0.00045247,95132.0,95131.0,0.04839049]
[1746487869213,0.21068667,95132.0,95131.0,0.04839049]
[1746487869615,0.21068667,95132.0,95131.0,0.03019049]
[1746487869837,0.22717447,95132.0,95131.0,0.03219049]
[1746487871568,0.01694027,95132.0,95131.0,0.01719049]
[1746487871767,0.01694027,95132.0,95131.0,0.04759049]
[1746487874939,0.01694027,95132.0,95131.0,0.04969256]
[1746487875759,0.01694027,95132.0,95131.0,0.04769256]
[1746487876176,0.01694027,95132.0,95131.0,0.05269256]
[1746487876815,0.00045247,95132.0,95131.0,0.05169256]
[1746487877159,0.00045247,95132.0,95131.0,0.05569256]
[1746487880338,0.00045247,95132.0,95131.0,0.02529245]
[1746487880552,0.00045247,95132.0,95131.0,0.03819049]
[1746487880755,0.00045247,95132.0,95131.0,0.05619246]
[1746487881345,0.00045247,95132.0,95131.0,0.05409049]
[1746487882574,0.00045247,95132.0,95131.0,0.05619249]
[1746487889782,0.01693846,95132.0,95131.0,0.05619249]
[1746487890127,0.01693846,95132.0,95131.0,0.05409049]
[1746487893172,0.01693846,95132.0,95131.0,0.03819049]
[1746487896644,0.00045247,95132.0,95131.0,0.03819049]
[1746487896840,0.00045247,95132.0,95131.0,0.04029249]
[1746487897838,0.00045247,95132.0,95131.0,0.02529249]
[1746487900454,0.00045247,95132.0,95131.0,0.02319049]
[1746487903957,0.03215247,95132.0,95131.0,0.02319049]
[1746487905882,0.03215247,95132.0,95131.0,0.01919049]
[1746487906294,0.03215247,95132.0,95131.0,0.02019049]
[1746487906857,0.03215247,95132.0,95131.0,0.01519049]
[1746487907012,0.03215247,95132.0,95131.0,0.01819049]
[1746487907645,0.03215247,95132.0,95131.0,0.01519049]
[1746487907852,0.03215247,95132.0,95131.0,0.01819049]
[1746487909893,0.04863992,95132.0,95131.0,0.01819049]
[1746487921013,0.03215247,95132.0,95131.0,0.01819049]
[1746487921491,0.03215247,95132.0,95131.0,0.008]
[1746487921919,0.03215247,95132.0,95131.0,0.01810047]
[1746487922162,0.03215247,95132.0,95131.0,0.008]
[1746487922879,0.05074434,95132.0,95131.0,0.008]
[1746487923112,0.05074434,95132.0,95131.0,0.004]
[1746487923324,0.05074434,95132.0,95131.0,0.006]
[1746487923543,0.05074434,95132.0,95131.0,0.007]
[1746487923769,0.05074434,95132.0,95131.0,0.006]
[1746487924025,0.05174434,95132.0,95131.0,0.004]
[1746487924221,0.40628519,95132.0,95131.0,0.004]
[1746487924448,0.43366407,95132.0,95131.0,0.004]
[1746487924664,1.13366407,95132.0,95131.0,0.004]
[1746487926607,1.13566407,95132.0,95131.0,0.004]
[1746487926804,1.11917618,95132.0,95131.0,0.004]
[1746487926964,1.13737531,95132.0,95131.0,0.004]
[1746487927199,1.12017618,95132.0,95131.0,0.004]
[1746487928875,1.81747618,95132.0,95131.0,0.004]
[1746487929979,1.8339667,95132.0,95131.0,0.004]
[1746487936765,1.81747618,95132.0,95131.0,0.004]
[1746487938419,1.81747618,95132.0,95111.0,0.004]
[1746487938420,0.59611925,95112.0,95111.0,0.004]
[1746487939032,0.61573385,95112.0,95111.0,0.004]
[1746487939657,0.61673385,95112.0,95111.0,0.004]
[1746487940678,1.11673385,95112.0,95111.0,0.004]
[1746487941093,1.11868509,95112.0,95111.0,0.004]
[1746487941244,1.08738509,95112.0,95111.0,0.004]
[1746487942081,0.58738509,95112.0,95111.0,0.004]
[1746487942666,0.56777049,95112.0,95111.0,0.004]
[1746487946686,0.5677784,95112.0,95111.0,0.004]
[1746487947677,0.5830784,95112.0,95111.0,0.004]
[1746487949798,0.59957035,95112.0,95111.0,0.004]
[1746487953301,0.01051568,95096.0,95091.0,0.21607275]
[1746487953480,0.01051568,95096.0,95093.0,0.21032022]
[1746487953708,0.01051568,95096.0,95094.0,0.01151454]
[1746487953950,0.02700837,95096.0,95094.0,0.01151454]
[1746487954274,0.02700837,95096.0,95095.0,0.0157]
[1746487954612,0.02746056,95096.0,95094.0,0.01151454]
[1746487955236,0.02746056,95096.0,95094.0,0.01551454]
[1746487956263,0.02746056,95096.0,95094.0,0.01851454]
[1746487956735,0.01096787,95096.0,95094.0,0.01851454]
[1746487959730,0.00045219,95096.0,95094.0,0.2288324]
[1746487959948,0.00045219,95096.0,95094.0,0.01851454]
[1746487961245,0.01694485,95096.0,95094.0,0.01851454]
[1746487969440,0.01694485,95096.0,95094.0,0.22883151]
[1746487969942,0.00045219,95096.0,95094.0,0.22883151]
[1746487972819,0.01694453,95096.0,95094.0,0.22883151]
[1746487976699,0.00045219,95096.0,95094.0,0.22883151]
[1746487981066,0.01694454,95096.0,95094.0,0.22883151]
[1746487985052,0.01694454,95096.0,95094.0,0.01851454]
[1746487986644,0.00045219,95096.0,95094.0,0.01851454]
[1746487991057,0.01694427,95096.0,95094.0,0.01851454]
[1746488000451,0.01694427,95096.0,95094.0,0.22883236]
[1746488000650,0.01694427,95096.0,95094.0,0.01851454]
[1746488000829,0.01694427,95096.0,95094.0,0.22883272]
[1746488014704,0.01694427,95096.0,95094.0,0.01851454]
[1746488026301,0.00045219,95096.0,95094.0,0.01851454]
[1746488026738,0.00045219,95096.0,95094.0,0.22883072]
[1746488029618,0.01694437,95096.0,95094.0,0.22883072]
[1746488029918,0.00045219,95096.0,95094.0,0.22883072]
[1746488032420,0.01694449,95096.0,95094.0,0.22883072]
[1746488035988,0.03244449,95096.0,95094.0,0.22883072]
[1746488036739,0.01595219,95096.0,95094.0,0.22883072]
[1746488037358,0.0155,95095.0,95094.0,0.22883275]
[1746488037558,0.00045219,95096.0,95094.0,0.22883275]
[1746488038195,0.00045219,95096.0,95094.0,0.22483275]
[1746488038392,0.00045219,95096.0,95094.0,0.22583275]
[1746488038779,0.00045219,95096.0,95094.0,0.22983275]
[1746488038991,0.00045219,95096.0,95094.0,0.22183275]
[1746488039191,0.00045219,95096.0,95094.0,0.22883275]
[1746488041302,0.01694421,95096.0,95094.0,0.22883275]
[1746488047382,0.00045219,95096.0,95094.0,0.22883275]
[1746488050606,0.01694409,95096.0,95094.0,0.22883275]
[1746488053435,0.04754409,95096.0,95094.0,0.22883275]
[1746488054261,0.01694409,95096.0,95094.0,0.22883275]
[1746488054442,0.05179114,95095.0,95094.0,0.22883275]
[1746488055306,0.05179114,95095.0,95094.0,0.22483275]
[1746488056129,0.05179114,95095.0,95094.0,0.22183275]
[1746488056309,0.05179114,95095.0,95094.0,0.22583275]
[1746488056692,0.05179114,95095.0,95094.0,0.22983275]
[1746488059267,0.01969114,95095.0,95094.0,0.22983275]
[1746488060813,0.03618343,95095.0,95094.0,0.22983275]
[1746488067837,0.03618343,95095.0,95094.0,0.22804126]
[1746488068041,0.01969114,95095.0,95094.0,0.22804126]
[1746488071336,0.03618348,95095.0,95094.0,0.22804126]
[1746488072324,0.05238348,95095.0,95094.0,0.22804126]
[1746488074450,0.03618348,95095.0,95094.0,0.22804126]
[1746488080732,0.01969114,95095.0,95094.0,0.22804126]
[1746488083643,0.03618341,95095.0,95094.0,0.22804126]
[1746488089004,0.01969114,95095.0,95094.0,0.22804126]
[1746488092028,0.03618341,95095.0,95094.0,0.22804126]
[1746488096687,0.01969114,95095.0,95094.0,0.22804126]
[1746488099765,0.03618335,95095.0,95094.0,0.22804126]
[1746488110162,0.01969114,95095.0,95094.0,0.22804126]
[1746488113113,0.03618347,95095.0,95094.0,0.22804126]
[1746488116686,0.01969114,95095.0,95094.0,0.22804126]
[1746488119712,0.03618348,95095.0,95094.0,0.22804126]
[1746488126775,0.03605139,95095.0,95094.0,0.22804126]
[1746488130132,0.01955905,95095.0,95094.0,0.22804126]
[1746488131746,0.01955905,95095.0,95094.0,0.23787201]
[1746488131926,0.03605125,95095.0,95094.0,0.23787201]
[1746488134371,0.03605125,95095.0,95094.0,0.26827201]
[1746488134580,0.03605125,95095.0,95094.0,0.27883155]
[1746488134910,0.01955905,95095.0,95094.0,5.32883155]
[1746488135108,0.01955905,95095.0,95094.0,5.66883155]
[1746488135562,0.00045219,95096.0,95095.0,0.3704]
[1746488135949,0.00045219,95096.0,95095.0,0.38989503]
[1746488136749,0.00045219,95096.0,95095.0,0.04989503]
[1746488136953,0.00045219,95096.0,95095.0,0.05699753]
[1746488137780,0.00045219,95096.0,95095.0,0.06199753]
[1746488145169,0.00045219,95096.0,95095.0,0.40199753]
[1746488145326,0.00045219,95096.0,95095.0,0.39989503]
[1746488158852,0.00045219,95096.0,95095.0,0.38449503]
[1746488160753,0.00045219,95096.0,95095.0,0.36949503]
[1746488163862,0.02013511,95096.0,95095.0,0.36949503]
[1746488169676,0.01992597,95096.0,95095.0,0.36949503]
[1746488179151,0.01992597,95096.0,95095.0,0.38509503]
[1746488179356,0.01992597,95096.0,95095.0,5.45109503]
[1746488179557,0.01992597,95096.0,95095.0,5.55109503]
[1746488179733,0.00024305,95096.0,95095.0,5.55109503]
[1746488180062,0.00024305,95096.0,95095.0,0.50109503]
[1746488180385,0.00024305,95096.0,95095.0,5.54609503]
[1746488180520,0.00024305,95096.0,95095.0,5.55109503]
[1746488180705,0.00024305,95096.0,95095.0,5.54109503]
[1746488180906,0.00024305,95096.0,95095.0,5.54509503]
[1746488181105,0.00024305,95096.0,95095.0,5.55109503]
[1746488181459,0.00024305,95096.0,95095.0,5.66852602]
[1746488181893,0.00024305,95096.0,95095.0,5.67352602]
[1746488182442,0.00024305,95096.0,95095.0,5.72108989]
[1746488183827,0.00024305,95096.0,95095.0,5.71608989]
[1746488184032,0.00024305,95096.0,95095.0,6.14018989]
[1746488184379,0.00024305,95096.0,95095.0,6.13418989]
[1746488185662,0.00024305,95096.0,95095.0,6.13818989]
[1746488186593,0.00024305,95096.0,95095.0,0.9114589]
[1746488186803,0.03184305,95096.0,95095.0,0.4951589]
[1746488186979,0.03184305,95096.0,95095.0,0.8351589]
[1746488187351,0.03184305,95096.0,95095.0,0.89846779]
[1746488188350,0.031529,95096.0,95095.0,0.89346779]
[1746488188901,0.031529,95096.0,95095.0,0.89646779]
[1746488189286,0.031529,95096.0,95095.0,0.89346779]
[1746488189499,0.031529,95096.0,95095.0,0.89446779]
[1746488189843,0.031529,95096.0,95095.0,0.47136779]
[1746488190314,0.031529,95096.0,95095.0,0.47336779]
[1746488191039,0.031529,95096.0,95095.0,0.36249503]
[1746488191237,0.05120897,95096.0,95095.0,0.36049503]
[1746488191474,0.05120897,95096.0,95095.0,0.36249503]
[1746488191636,0.05120897,95096.0,95095.0,0.36149503]
[1746488192003,0.05120897,95096.0,95095.0,0.36249503]
[1746488205363,0.05120897,95096.0,95095.0,0.02249503]
[1746488208899,0.05120897,95096.0,95095.0,0.01201603]
[1746488209203,0.05120897,95096.0,95095.0,0.02008417]
[1746488214625,0.05120897,95096.0,95095.0,0.01808417]
[1746488214823,0.05120897,95096.0,95095.0,0.02008417]
[1746488215048,0.05120897,95096.0,95095.0,0.01908417]
[1746488215268,0.05120897,95096.0,95095.0,0.02008417]
[1746488215808,0.05089993,95096.0,95095.0,0.02008417]
[1746488216858,0.01967997,95096.0,95095.0,0.02218707]
[1746488217062,0.01967997,95096.0,95095.0,0.36008417]
[1746488217261,0.01967997,95096.0,95095.0,5.42518417]
[1746488217469,0.01967997,95096.0,95095.0,5.44148417]
[1746488217670,0.0159,95112.0,95109.0,0.01051425]
[1746488217871,0.0159,95131.0,95128.0,0.21024121]
[1746488218306,0.0159,95129.0,95128.0,0.21024121]
[1746488218707,0.03559469,95129.0,95128.0,0.21024121]
[1746488218910,0.01969469,95129.0,95126.0,0.22075837]
[1746488219086,0.0311,95127.0,95123.0,0.21976481]
[1746488219427,0.0311,95125.0,95123.0,0.21976481]
[1746488219651,0.0311,95125.0,95124.0,0.21025025]
[1746488220263,0.05079359,95125.0,95124.0,0.21025025]
[1746488220458,0.06728242,95125.0,95124.0,0.21025025]
[1746488221448,0.06828242,95125.0,95124.0,0.21025025]
[1746488221650,0.06828242,95125.0,95124.0,0.21374405]
[1746488221910,0.07028173,95125.0,95124.0,0.21374405]
[1746488223102,0.07028173,95125.0,95124.0,0.22717334]
[1746488224317,0.07028173,95125.0,95124.0,0.01692309]
[1746488229850,0.07026988,95125.0,95124.0,0.01692309]
[1746488230083,0.05378105,95125.0,95124.0,0.01692309]
[1746488231091,0.05361594,95125.0,95124.0,0.01692309]
[1746488232960,0.0701048,95125.0,95124.0,0.01692309]
[1746488240394,0.05361594,95125.0,95124.0,0.01692309]
[1746488243618,0.03916994,95125.0,95124.0,0.01692309]
[1746488244852,0.03716994,95125.0,95124.0,0.01692309]
[1746488245058,0.03916994,95125.0,95124.0,0.01692309]
[1746488245440,0.03816994,95125.0,95124.0,0.01692309]
[1746488245680,0.03916994,95125.0,95124.0,0.01692309]
[1746488245881,0.04016994,95125.0,95124.0,0.01692309]
[1746488246314,0.03916994,95125.0,95124.0,0.01692309]
[1746488246556,0.04016994,95125.0,95124.0,0.01692309]
[1746488248004,0.04018018,95125.0,95124.0,0.01692309]
[1746488249352,0.04003962,95125.0,95124.0,0.01692309]
[1746488249503,0.04003971,95125.0,95124.0,0.01692309]
[1746488250188,0.02368791,95125.0,95124.0,0.01692309]
[1746488250679,0.02368774,95125.0,95124.0,0.01692309]
[1746488252334,0.02368796,95125.0,95124.0,0.03482541]
[1746488252539,0.02368796,95125.0,95124.0,0.05082541]
[1746488252735,0.02368796,95125.0,95124.0,0.01902541]
[1746488252943,0.02368796,95125.0,95124.0,0.01692309]
[1746488254314,0.02068796,95125.0,95124.0,0.01692309]
[1746488254526,0.03617425,95125.0,95124.0,0.01692309]
[1746488254704,0.03617425,95125.0,95124.0,0.01792309]
[1746488255099,0.01648629,95125.0,95124.0,0.01792309]
[1746488256937,0.03615324,95125.0,95124.0,0.01792309]
[1746488262231,0.01966695,95125.0,95124.0,0.01792309]
[1746488265023,0.0326,95147.0,95133.0,0.01051159]
[1746488265242,0.04908565,95139.0,95138.0,0.22073198]
[1746488265534,0.04908565,95139.0,95138.0,0.23745494]
[1746488265732,0.06874038,95139.0,95138.0,0.23745494]
[1746488266730,0.05425473,95139.0,95138.0,0.23745494]
[1746488267688,0.05525473,95139.0,95138.0,0.23745494]
[1746488268670,0.05525741,95139.0,95138.0,0.23745494]
[1746488271302,0.07174331,95139.0,95138.0,0.23745494]
[1746488277494,0.05525741,95139.0,95138.0,0.23745494]
[1746488279908,0.05510931,95139.0,95138.0,0.23745494]
[1746488280573,0.07159565,95139.0,95138.0,0.23745494]
[1746488281532,0.07159565,95139.0,95138.0,0.01672296]
[1746488281734,0.07369963,95139.0,95138.0,0.01672296]
[1746488282146,0.22683238,95133.0,95126.0,0.21024746]
[1746488282357,0.0166,95128.0,95127.0,0.01671454]
[1746488282571,0.01870398,95128.0,95127.0,0.01671454]
[1746488282771,0.01870398,95128.0,95116.0,0.01051347]
[1746488282772,0.01051259,95124.0,95120.0,0.01051303]
[1746488282989,0.0324,95122.0,95121.0,0.01673823]
[1746488283438,0.05208722,95122.0,95121.0,0.01673823]
[1746488285369,0.26234352,95122.0,95121.0,0.01673823]
[1746488285579,0.26234352,95122.0,95121.0,0.01973823]
[1746488285772,0.26234352,95122.0,95121.0,0.01873823]
[1746488286007,0.05408722,95122.0,95121.0,0.01673823]
[1746488286406,0.05508722,95122.0,95121.0,0.01673823]
[1746488287219,0.02268722,95122.0,95121.0,0.01673823]
[1746488287653,0.02268722,95122.0,95121.0,0.05014082]
[1746488288329,0.02168722,95122.0,95121.0,0.05014082]
[1746488288540,0.02268722,95122.0,95121.0,0.05014082]
[1746488288747,0.02068722,95122.0,95121.0,0.05014082]
[1746488289376,0.02068722,95122.0,95121.0,0.05114082]
[1746488289570,0.01968722,95122.0,95121.0,0.05114082]
[1746488289774,0.01968722,95122.0,95121.0,0.03293823]
[1746488290019,0.01968722,95122.0,95121.0,0.03493823]
[1746488290714,0.01968722,95122.0,95121.0,0.01973823]
[1746488291438,0.03617491,95122.0,95121.0,0.01973823]
[1746488292422,0.03596877,95122.0,95121.0,0.01973823]
[1746488294314,0.01648769,95122.0,95121.0,0.01973823]
[1746488297557,0.01051093,95139.0,95135.0,0.01051137]
[1746488297768,0.01051104,95138.0,95135.0,0.01051137]
[1746488297973,0.0315,95137.0,95136.0,0.00346728]
[1746488298298,0.0315,95137.0,95136.0,0.01678593]
[1746488298489,0.03132488,95137.0,95136.0,0.01678593]
[1746488299579,0.03232488,95137.0,95136.0,0.01678593]
[1746488299994,0.03432488,95137.0,95136.0,0.01678593]
[1746488300529,0.05081216,95137.0,95136.0,0.01678593]
[1746488300735,0.05291614,95137.0,95136.0,0.01678593]
[1746488301132,0.22073662,95136.0,95132.0,0.01051171]
[1746488301364,0.00210398,95135.0,95132.0,0.01051171]
[1746488301565,0.0155,95134.0,95133.0,0.0034739]
[1746488302186,0.0308,95134.0,95133.0,0.0034739]
[1746488303608,0.0318,95134.0,95133.0,0.0034739]
[1746488304008,0.0328,95134.0,95133.0,0.0034739]
[1746488304431,0.05246484,95134.0,95133.0,0.0034739]
[1746488305636,0.02166484,95134.0,95130.0,0.01051193]
[1746488305832,0.00210398,95133.0,95131.0,0.00347832]
[1746488305997,0.02176882,95133.0,95130.0,0.01051193]
[1746488306199,0.01966484,95132.0,95131.0,0.00347832]
[1746488306417,0.05166484,95132.0,95130.0,0.01051193]
[1746488306597,0.032,95131.0,95130.0,0.01051193]
[1746488307218,0.0516647,95131.0,95130.0,0.01051193]
[1746488309197,0.05166821,95131.0,95130.0,0.01399246]
[1746488309600,0.05266704,95131.0,95130.0,0.01399246]
[1746488310418,0.05166704,95131.0,95130.0,0.01399246]
[1746488310954,0.05266704,95131.0,95130.0,0.01399246]
[1746488312969,0.06915487,95131.0,95130.0,0.0272473]
[1746488314281,0.28149526,95131.0,95130.0,0.01673537]
[1746488314477,0.01051193,95130.0,95125.0,0.22076028]
[1746488314691,0.0327,95127.0,95126.0,0.00348938]
[1746488314949,0.05236704,95127.0,95126.0,0.00348938]
[1746488317087,0.05336704,95127.0,95126.0,0.00348938]
[1746488319727,0.06985531,95127.0,95126.0,0.00348938]
[1746488326101,0.0317,95126.0,95124.0,0.01051259]
[1746488326297,0.0317,95124.0,95123.0,0.0105127]
[1746488326601,0.0317,95124.0,95123.0,0.22076679]
[1746488326785,0.05136704,95124.0,95123.0,0.22076679]
[1746488327852,0.05136704,95124.0,95123.0,0.23403675]
[1746488329770,0.05136704,95124.0,95123.0,0.23753276]
[1746488331225,0.06785575,95124.0,95123.0,0.23753276]
[1746488331977,0.03615575,95124.0,95123.0,0.23753276]
[1746488334196,0.06905575,95124.0,95123.0,0.23753276]
[1746488339647,0.05265575,95124.0,95123.0,0.23753276]
[1746488339862,0.03615575,95124.0,95123.0,0.23753276]
[1746488341102,0.06795575,95124.0,95123.0,0.23753276]
[1746488342537,0.05146704,95124.0,95123.0,0.23753276]
[1746488345656,0.0679557,95124.0,95123.0,0.23753276]
[1746488346756,0.05146704,95124.0,95123.0,0.23753276]
[1746488347721,0.05146704,95124.0,95123.0,0.01676597]
[1746488348726,0.05357102,95124.0,95123.0,0.01676597]
[1746488349161,0.02177102,95124.0,95122.0,0.2102563]
[1746488349469,0.0308,95122.0,95121.0,0.2207695]
[1746488349705,0.22077143,95121.0,95117.0,0.01051336]
[1746488349902,0.0308,95119.0,95098.0,0.0156]
[1746488350107,0.0308,95119.0,95096.0,0.0163]
[1746488350108,0.0308,95112.0,95099.0,0.22082232]
[1746488350447,0.03290398,95112.0,95092.0,0.01051613]
[1746488350742,0.39257102,95112.0,95101.0,0.04972134]
[1746488350932,0.39046704,95112.0,95101.0,0.04972134]
[1746488351365,0.40696984,95112.0,95101.0,0.04972134]
[1746488351928,0.40696984,95112.0,95111.0,0.00104564]
[1746488352133,0.40896984,95112.0,95111.0,0.00104564]
[1746488352325,0.40896984,95112.0,95111.0,4.564e-05]
[1746488352705,0.40996984,95112.0,95111.0,4.564e-05]
[1746488357571,0.03916984,95112.0,95111.0,4.564e-05]
[1746488357787,0.02267824,95112.0,95111.0,0.21032625]
[1746488358008,0.02267824,95112.0,95111.0,0.22735288]
[1746488359043,0.02167824,95112.0,95111.0,0.22735288]
[1746488359383,0.02067824,95112.0,95111.0,0.22735288]
[1746488359582,0.02267824,95112.0,95111.0,0.22735288]
[1746488360716,0.03916893,95112.0,95111.0,0.22735288]
[1746488369003,0.02267824,95112.0,95111.0,0.22735288]
[1746488371993,0.03916876,95112.0,95111.0,0.22735288]
[1746488376836,0.02267824,95112.0,95111.0,0.22735288]
[1746488381266,0.03916874,95112.0,95111.0,0.22735288]
[1746488383573,0.06936874,95112.0,95111.0,0.01707227]
[1746488383799,0.28175112,95112.0,95111.0,0.01707227]
[1746488384003,0.27964714,95112.0,95111.0,4.564e-05]
[1746488384725,0.31238999,95112.0,95111.0,4.564e-05]
[1746488384978,0.27964714,95112.0,95111.0,4.564e-05]
[1746488388231,0.26315664,95112.0,95111.0,4.564e-05]
[1746488390425,0.26315664,95112.0,95111.0,0.01700734]
[1746488390626,0.26315664,95112.0,95111.0,4.564e-05]
[1746488390803,0.26315664,95112.0,95111.0,0.01700734]
[1746488391003,0.26315664,95112.0,95111.0,4.564e-05]
[1746488391227,0.26315664,95112.0,95111.0,0.01700734]
[1746488391429,0.27964764,95112.0,95111.0,4.564e-05]
[1746488391605,0.27964764,95112.0,95111.0,0.01700734]
[1746488391797,0.27964764,95112.0,95111.0,4.564e-05]
[1746488392005,0.27964764,95112.0,95111.0,0.01700734]
[1746488392232,0.27964764,95112.0,95111.0,4.564e-05]
[1746488392758,0.27964764,95112.0,95111.0,0.01700734]
[1746488392960,0.27964764,95112.0,95111.0,4.564e-05]
[1746488398351,0.26315664,95112.0,95111.0,4.564e-05]
[1746488401311,0.27964806,95112.0,95111.0,4.564e-05]
[1746488404190,0.77964806,95112.0,95111.0,4.564e-05]
[1746488404896,0.97964806,95112.0,95111.0,4.564e-05]
[1746488405609,0.77964806,95112.0,95111.0,4.564e-05]
[1746488405981,1.11964806,95112.0,95111.0,4.564e-05]
[1746488406439,1.33418891,95112.0,95111.0,4.564e-05]
[1746488406767,1.36366886,95112.0,95111.0,4.564e-05]
[1746488407177,1.36266886,95112.0,95111.0,4.564e-05]
[1746488407529,1.36066886,95112.0,95111.0,4.564e-05]
[1746488407660,1.33118891,95112.0,95111.0,4.564e-05]
[1746488408143,1.33318891,95112.0,95111.0,4.564e-05]
[1746488408625,1.34617021,95112.0,95111.0,4.564e-05]
[1746488408874,1.31869749,95112.0,95111.0,4.564e-05]
[1746488410242,1.34816763,95112.0,95111.0,4.564e-05]
[1746488410593,1.31866742,95112.0,95111.0,4.564e-05]
[1746488411003,1.34813482,95112.0,95111.0,4.564e-05]
[1746488411305,1.31866742,95112.0,95111.0,4.564e-05]
[1746488411508,1.34813264,95112.0,95111.0,4.564e-05]
[1746488411712,1.31866742,95112.0,95111.0,4.564e-05]
[1746488411936,1.33516,95112.0,95111.0,4.564e-05]
[1746488412134,2.13798029,95112.0,95111.0,4.564e-05]
[1746488412308,2.17534939,95112.0,95111.0,4.564e-05]
[1746488412715,2.0698291,95112.0,95111.0,4.564e-05]
[1746488412922,2.0678291,95112.0,95111.0,4.564e-05]
[1746488413080,2.0708291,95112.0,95111.0,4.564e-05]
[1746488414078,2.05433652,95112.0,95111.0,4.564e-05]
[1746488414515,2.05233652,95112.0,95111.0,4.564e-05]
[1746488414944,2.05733652,95112.0,95111.0,4.564e-05]
[1746488415164,2.16285681,95112.0,95111.0,4.564e-05]
[1746488419351,2.19559603,95112.0,95111.0,4.564e-05]
[1746488419913,0.01051734,95081.0,95077.0,0.01051779]
[1746488420127,0.00210398,95080.0,95077.0,0.01051779]
[1746488420331,0.00210398,95080.0,95078.0,0.01719544]
[1746488420541,0.01964817,95079.0,95078.0,0.02771312]
[1746488420951,0.01964817,95079.0,95078.0,0.23806659]
[1746488421151,0.01970516,95079.0,95078.0,0.23806659]
[1746488421360,0.03620061,95079.0,95078.0,0.01719544]
[1746488421533,0.03830459,95079.0,95078.0,0.01719544]
[1746488421854,0.03830459,95079.0,95078.0,0.01919544]
[1746488422404,0.03830459,95079.0,95078.0,0.02119544]
[1746488422878,0.25912067,95079.0,95078.0,0.02119544]
[1746488423026,0.28831669,95079.0,95078.0,0.02119544]
[1746488423223,0.28831669,95079.0,95078.0,0.004]
[1746488424280,0.28831669,95079.0,95078.0,0.002]
[1746488424486,0.28831669,95079.0,95068.0,0.01051878]
[1746488424487,0.21036687,95072.0,95068.0,0.01051878]
[1746488424931,0.21036687,95072.0,95065.0,0.02488461]
[1746488424932,0.21247085,95072.0,95071.0,0.00761101]
[1746488425075,0.24316687,95072.0,95071.0,0.00761101]
[1746488425275,0.26281504,95072.0,95071.0,0.004]
[1746488425908,0.26281504,95072.0,95071.0,0.005]
[1746488426083,0.26281504,95072.0,95071.0,0.006]
[1746488426280,0.26281504,95072.0,95071.0,0.005]
[1746488426482,0.26281504,95072.0,95071.0,0.006]
[1746488430017,0.27931224,95072.0,95071.0,0.006]
[1746488434247,0.30772223,95072.0,95071.0,0.006]
[1746488434675,0.27931224,95072.0,95071.0,0.006]
[1746488436845,0.26281504,95072.0,95071.0,0.006]
[1746488437966,0.27735589,95072.0,95071.0,0.006]
[1746488438280,0.27735589,95072.0,95071.0,0.004]
[1746488438281,0.61735589,95072.0,95071.0,0.004]
[1746488438483,0.81735589,95072.0,95071.0,0.004]
[1746488438684,1.42287618,95072.0,95071.0,0.004]
[1746488439134,1.42487618,95072.0,95071.0,0.004]
[1746488439281,2.12217618,95072.0,95071.0,0.004]
[1746488439484,2.01465589,95072.0,95071.0,0.004]
[1746488440146,2.03315489,95072.0,95071.0,0.004]
[1746488440589,2.03115489,95072.0,95071.0,0.004]
[1746488440791,2.03815489,95072.0,95071.0,0.004]
[1746488440991,2.02361404,95072.0,95071.0,0.004]
[1746488441463,1.82361404,95072.0,95071.0,0.004]
[1746488441673,1.80701404,95072.0,95071.0,0.004]
[1746488442015,1.79081404,95072.0,95071.0,0.004]
[1746488443068,1.82281404,95072.0,95071.0,0.004]
[1746488443549,1.87673676,95072.0,95071.0,0.004]
[1746488443871,1.37673676,95072.0,95071.0,0.004]
[1746488444295,1.32281404,95072.0,95071.0,0.004]
[1746488448091,0.95081404,95072.0,95071.0,0.004]
[1746488448524,0.93431504,95072.0,95071.0,0.004]
[1746488450498,0.02664817,95072.0,95071.0,0.02718238]
[1746488450673,0.02664817,95072.0,95071.0,0.004]
[1746488450876,0.02664817,95072.0,95071.0,0.02718238]
[1746488451081,0.01964817,95072.0,95071.0,0.00761101]
[1746488451478,0.02264817,95072.0,95071.0,0.00761101]
[1746488451865,0.02564817,95072.0,95071.0,0.00761101]
[1746488452819,0.02264817,95072.0,95071.0,0.00761101]
[1746488453019,0.03814686,95072.0,95071.0,0.00761101]
[1746488453531,0.04014686,95072.0,95071.0,0.00761101]
[1746488455748,0.04014686,95072.0,95071.0,0.004]
[1746488455904,0.04225084,95072.0,95071.0,0.004]
[1746488456753,0.02575215,95072.0,95071.0,0.004]
[1746488460190,0.04225068,95072.0,95071.0,0.004]
[1746488465044,0.0401467,95072.0,95071.0,0.004]
[1746488465639,0.04225068,95072.0,95071.0,0.004]
[1746488466008,0.14452927,95072.0,95071.0,0.004]
[1746488466211,0.07245068,95072.0,95071.0,0.004]
[1746488466420,0.0703467,95072.0,95071.0,0.004]
[1746488467452,0.05384817,95072.0,95071.0,0.004]
[1746488469583,0.05595215,95072.0,95071.0,0.004]
[1746488470519,0.02364817,95072.0,95071.0,0.004]
[1746488470742,0.04014687,95072.0,95071.0,0.004]
[1746488470942,0.04014687,95072.0,95071.0,0.02717192]
[1746488471169,0.04014687,95072.0,95071.0,0.004]
[1746488476746,0.02364817,95072.0,95071.0,0.004]
[1746488477142,0.02575215,95072.0,95071.0,0.004]
[1746488478267,0.02364817,95072.0,95071.0,0.004]
[1746488480503,0.23401504,95072.0,95071.0,0.004]
[1746488481178,0.25051355,95072.0,95071.0,0.004]
[1746488492739,0.25051355,95072.0,95071.0,0.0271875]
[1746488492939,0.25051355,95072.0,95071.0,0.00761101]
[1746488493141,0.25051355,95072.0,95071.0,0.0271875]
[1746488493341,0.25051355,95072.0,95071.0,0.00761101]
[1746488493542,0.25051355,95072.0,95071.0,0.0271875]
[1746488493748,0.25051355,95072.0,95071.0,0.00761101]
[1746488494202,0.25051355,95072.0,95071.0,0.0271875]
[1746488495838,0.04014668,95072.0,95071.0,0.0271875]
[1746488496047,0.02364817,95072.0,95071.0,0.0435875]
[1746488496247,0.02364817,95072.0,95071.0,0.0598875]
[1746488496637,0.01964817,95072.0,95071.0,0.0598875]
[1746488496832,0.02164817,95072.0,95071.0,0.0598875]
[1746488496989,0.02264817,95072.0,95071.0,0.0598875]
[1746488497393,0.02064817,95072.0,95071.0,0.0598875]
[1746488497999,0.02064817,95072.0,95071.0,0.0435875]
[1746488498203,0.01964817,95072.0,95071.0,0.0435875]
[1746488498426,0.01964817,95072.0,95071.0,0.0271875]
[1746488498627,0.01964817,95072.0,95071.0,0.0281875]
[1746488500608,0.03614583,95072.0,95071.0,0.0281875]
[1746488506811,0.01964817,95072.0,95071.0,0.0281875]
[1746488511311,0.03614615,95072.0,95071.0,0.0281875]
[1746488516671,0.01964817,95072.0,95071.0,0.0281875]